[Event "Early-Titled-Tuesday-Blitz-April-23-2024"]
[Site "Chess.com"]
[Date "2024.04.23"]
[Round "7"]
[White "rdarruda"]
[Black "RasSanti"]
[Result "1-0"]
[WhiteElo "2525"]
[BlackElo "2314"]
[TimeControl "180+1"]
[EndTime "9:19:16 PDT"]
[Termination "rdarruda won on time"]

1. d4 {[%clk 0:03:00.9]} 1... Nf6 {[%clk 0:02:55.8]} 2. Nf3 {[%clk 0:03:00.4]}
2... d5 {[%clk 0:02:51.7]} 3. c4 {[%clk 0:03:00.1]} 3... e6 {[%clk 0:02:50.4]}
4. e3 {[%clk 0:03:00.1]} 4... Bb4+ {[%clk 0:02:46.3]} 5. Nbd2 {[%clk 0:02:58.4]}
5... O-O {[%clk 0:02:45.9]} 6. Bd3 {[%clk 0:02:58.1]} 6... dxc4 {[%clk
0:02:45.1]} 7. Bxc4 {[%clk 0:02:56.3]} 7... c5 {[%clk 0:02:43.6]} 8. a3 {[%clk
0:02:52.7]} 8... Bxd2+ {[%clk 0:02:39.1]} 9. Bxd2 {[%clk 0:02:52.2]} 9... cxd4
{[%clk 0:02:39.1]} 10. Nxd4 {[%clk 0:02:52.2]} 10... a6 {[%clk 0:02:34.5]} 11.
O-O {[%clk 0:02:51.2]} 11... b5 {[%clk 0:02:34.1]} 12. Bb3 {[%clk 0:02:43.1]}
12... Bb7 {[%clk 0:02:33.3]} 13. Bb4 {[%clk 0:02:41.4]} 13... Re8 {[%clk
0:02:31.1]} 14. Qe2 {[%clk 0:02:39.6]} 14... Nc6 {[%clk 0:02:10.6]} 15. Nxc6
{[%clk 0:02:38.6]} 15... Bxc6 {[%clk 0:02:11.5]} 16. Rfd1 {[%clk 0:02:37.9]}
16... Qc7 {[%clk 0:02:05.3]} 17. f3 {[%clk 0:02:35.4]} 17... Rad8 {[%clk
0:02:00.5]} 18. e4 {[%clk 0:02:34.1]} 18... Rxd1+ {[%clk 0:01:42.2]} 19. Rxd1
{[%clk 0:02:32.9]} 19... Rd8 {[%clk 0:01:42.1]} 20. Rc1 {[%clk 0:02:33.1]} 20...
Qb7 {[%clk 0:01:38.3]} 21. Qe3 {[%clk 0:02:24.8]} 21... h6 {[%clk 0:01:34.8]}
22. Bc3 {[%clk 0:02:23.3]} 22... Ne8 {[%clk 0:01:27.6]} 23. Qc5 {[%clk
0:02:16.6]} 23... Bd7 {[%clk 0:01:14.1]} 24. Rd1 {[%clk 0:02:05.8]} 24... Rc8
{[%clk 0:01:09.8]} 25. Qd4 {[%clk 0:02:02]} 25... Bc6 {[%clk 0:01:04]} 26. Ba5
{[%clk 0:02:00.1]} 26... Qe7 {[%clk 0:00:58.6]} 27. Bd8 {[%clk 0:01:54.9]} 27...
Qb7 {[%clk 0:00:54.8]} 28. h3 {[%clk 0:01:54.7]} 28... Qb8 {[%clk 0:00:36.4]}
29. Ba5 {[%clk 0:01:50.5]} 29... Qf4 {[%clk 0:00:31.4]} 30. Bc3 {[%clk
0:01:43.3]} 30... Nf6 {[%clk 0:00:27.3]} 31. Bd2 {[%clk 0:01:39.4]} 31... Qc7
{[%clk 0:00:24.4]} 32. Bxh6 {[%clk 0:01:36.3]} 32... Ne8 {[%clk 0:00:17.5]} 33.
Be3 {[%clk 0:01:32.1]} 33... a5 {[%clk 0:00:15.4]} 34. Qb6 {[%clk 0:01:25.7]}
34... Qxb6 {[%clk 0:00:10.6]} 35. Bxb6 {[%clk 0:01:26.6]} 35... a4 {[%clk
0:00:10.3]} 36. Ba2 {[%clk 0:01:26.9]} 36... Nf6 {[%clk 0:00:08.9]} 37. Rc1
{[%clk 0:01:25.2]} 37... Kf8 {[%clk 0:00:06.5]} 38. b3 {[%clk 0:01:19.6]} 38...
Ke8 {[%clk 0:00:04.6]} 39. bxa4 {[%clk 0:01:15.6]} 39... bxa4 {[%clk 0:00:05.5]}
40. Bd4 {[%clk 0:01:11.2]} 40... Kd7 {[%clk 0:00:02.1]} 41. Rd1 {[%clk
0:01:00.9]} 1-0

[Event "Early-Titled-Tuesday-Blitz-April-23-2024"]
[Site "Chess.com"]
[Date "2024.04.23"]
[Round "7"]
[White "rezamahdavi2008"]
[Black "Harry_Rakkel"]
[Result "1-0"]
[WhiteElo "2907"]
[BlackElo "2693"]
[TimeControl "180+1"]
[EndTime "9:19:17 PDT"]
[Termination "rezamahdavi2008 won by resignation"]

1. Nf3 {[%clk 0:03:00.9]} 1... Nf6 {[%clk 0:02:58.3]} 2. c4 {[%clk 0:02:59.3]}
2... e6 {[%clk 0:02:57.1]} 3. g3 {[%clk 0:02:45.4]} 3... d5 {[%clk 0:02:55.2]}
4. Bg2 {[%clk 0:02:46.1]} 4... dxc4 {[%clk 0:02:54.5]} 5. Qa4+ {[%clk
0:02:36.9]} 5... Nbd7 {[%clk 0:02:52.9]} 6. Qxc4 {[%clk 0:02:37.7]} 6... a6
{[%clk 0:02:51.7]} 7. Qc2 {[%clk 0:02:38.4]} 7... c5 {[%clk 0:02:49.7]} 8. Nc3
{[%clk 0:02:39.1]} 8... Ra7 {[%clk 0:02:44.1]} 9. d4 {[%clk 0:02:22.2]} 9... b5
{[%clk 0:02:38]} 10. a4 {[%clk 0:02:12.2]} 10... b4 {[%clk 0:02:34.5]} 11. Nd1
{[%clk 0:02:12.9]} 11... Bb7 {[%clk 0:02:28.3]} 12. O-O {[%clk 0:02:01.8]} 12...
Qa8 {[%clk 0:02:14]} 13. dxc5 {[%clk 0:01:57]} 13... Bxc5 {[%clk 0:02:06.8]} 14.
Be3 {[%clk 0:01:56.5]} 14... Be4 {[%clk 0:01:57.6]} 15. Qd2 {[%clk 0:01:48.5]}
15... O-O {[%clk 0:01:55.3]} 16. Bxc5 {[%clk 0:01:48]} 16... Nxc5 {[%clk
0:01:54.3]} 17. Qxb4 {[%clk 0:01:48.8]} 17... Nd3 {[%clk 0:01:42.9]} 18. Qd2
{[%clk 0:01:35.5]} 18... Rd8 {[%clk 0:01:25.4]} 19. Qa5 {[%clk 0:01:25.8]} 19...
Rd5 {[%clk 0:01:07.4]} 20. Qb6 {[%clk 0:01:22.8]} 20... Ne5 {[%clk 0:00:58.4]}
21. Nc3 {[%clk 0:01:18.1]} 21... Rb7 {[%clk 0:00:48.9]} 22. Qe3 {[%clk
0:01:11.6]} 22... Nc4 {[%clk 0:00:47.7]} 23. Qc1 {[%clk 0:01:08.1]} 23... Rc5
{[%clk 0:00:35.4]} 24. Nxe4 {[%clk 0:01:07.5]} 24... Nxe4 {[%clk 0:00:36.3]} 25.
Qf4 {[%clk 0:01:06]} 25... Ncd6 {[%clk 0:00:33.3]} 26. Nd2 {[%clk 0:01:02.7]}
26... f5 {[%clk 0:00:20.2]} 27. Nxe4 {[%clk 0:00:59.5]} 27... fxe4 {[%clk
0:00:19.3]} 28. Bxe4 {[%clk 0:00:59.8]} 28... Nxe4 {[%clk 0:00:16.8]} 29. Qxe4
{[%clk 0:01:00.7]} 29... Qc8 {[%clk 0:00:17]} 30. Rfd1 {[%clk 0:00:47.9]} 30...
Rxb2 {[%clk 0:00:14.2]} 31. Rd6 {[%clk 0:00:48.5]} 31... h6 {[%clk 0:00:11.7]}
32. Rad1 {[%clk 0:00:46.6]} 32... Qb7 {[%clk 0:00:09.5]} 33. Qxe6+ {[%clk
0:00:45.8]} 33... Kh7 {[%clk 0:00:07.9]} 34. Qg6+ {[%clk 0:00:45.8]} 1-0

[Event "Early-Titled-Tuesday-Blitz-April-23-2024"]
[Site "Chess.com"]
[Date "2024.04.23"]
[Round "7"]
[White "Rsnr"]
[Black "jk13"]
[Result "1-0"]
[WhiteElo "2889"]
[BlackElo "2683"]
[TimeControl "180+1"]
[EndTime "9:19:18 PDT"]
[Termination "Rsnr won by resignation"]

1. d4 {[%clk 0:03:00.9]} 1... Nf6 {[%clk 0:03:00]} 2. c4 {[%clk 0:03:01]} 2...
e6 {[%clk 0:03:00.7]} 3. Nf3 {[%clk 0:03:00.4]} 3... Bb4+ {[%clk 0:03:01.4]} 4.
Nbd2 {[%clk 0:02:56.5]} 4... O-O {[%clk 0:03:01.1]} 5. a3 {[%clk 0:02:54]} 5...
Be7 {[%clk 0:03:00.9]} 6. e4 {[%clk 0:02:53.4]} 6... d5 {[%clk 0:03:01.8]} 7. e5
{[%clk 0:02:53.2]} 7... Nfd7 {[%clk 0:03:02.3]} 8. Bd3 {[%clk 0:02:52.7]} 8...
c5 {[%clk 0:03:02.5]} 9. h4 {[%clk 0:02:52.1]} 9... g6 {[%clk 0:03:03.1]} 10.
O-O {[%clk 0:02:49.2]} 10... Nc6 {[%clk 0:03:01.1]} 11. Re1 {[%clk 0:02:48.5]}
11... cxd4 {[%clk 0:02:58.3]} 12. cxd5 {[%clk 0:02:45.3]} 12... Nc5 {[%clk
0:02:55.4]} 13. Bb1 {[%clk 0:02:26.2]} 13... exd5 {[%clk 0:02:53.6]} 14. b4
{[%clk 0:02:24.6]} 14... Ne6 {[%clk 0:02:48.7]} 15. g3 {[%clk 0:02:24.9]} 15...
Ng7 {[%clk 0:02:40.5]} 16. Nb3 {[%clk 0:02:24.3]} 16... Bg4 {[%clk 0:02:34.4]}
17. b5 {[%clk 0:02:17.3]} 17... Na5 {[%clk 0:02:30.1]} 18. Nbxd4 {[%clk
0:02:17.3]} 18... Ne6 {[%clk 0:02:29.9]} 19. Qd3 {[%clk 0:01:54.2]} 19... Bc5
{[%clk 0:02:14.9]} 20. Bh6 {[%clk 0:01:51.2]} 20... Re8 {[%clk 0:02:03.3]} 21.
Nxe6 {[%clk 0:01:51.3]} 21... fxe6 {[%clk 0:01:50.9]} 22. Kg2 {[%clk 0:01:30.9]}
22... Qb6 {[%clk 0:01:43]} 23. Ra2 {[%clk 0:01:30.9]} 23... Bf5 {[%clk
0:01:29.1]} 24. Qe2 {[%clk 0:01:28.2]} 24... Bxb1 {[%clk 0:01:24.4]} 25. Rxb1
{[%clk 0:01:29.1]} 25... Nc4 {[%clk 0:01:20.6]} 26. h5 {[%clk 0:01:26]} 26...
Qc7 {[%clk 0:01:03.2]} 27. hxg6 {[%clk 0:01:14.7]} 27... hxg6 {[%clk 0:01:02.8]}
28. Rh1 {[%clk 0:01:15.3]} 28... Qf7 {[%clk 0:00:54.4]} 29. Bf4 {[%clk
0:01:14.6]} 29... Bf8 {[%clk 0:00:46.6]} 30. Ng5 {[%clk 0:01:10.4]} 30... Qf5
{[%clk 0:00:44.9]} 31. Qf3 {[%clk 0:01:05.2]} 31... Bg7 {[%clk 0:00:41]} 32. g4
{[%clk 0:01:05]} 32... Qf8 {[%clk 0:00:36.8]} 33. Qg3 {[%clk 0:01:00.6]} 33...
Rac8 {[%clk 0:00:28.4]} 34. Re2 {[%clk 0:00:56.2]} 34... d4 {[%clk 0:00:20.5]}
35. Re4 {[%clk 0:00:50.2]} 35... Rcd8 {[%clk 0:00:15.9]} 36. Qh4 {[%clk
0:00:50]} 36... Qxa3 {[%clk 0:00:12.6]} 37. Qh7+ {[%clk 0:00:49.9]} 37... Kf8
{[%clk 0:00:13.1]} 38. Qxg6 {[%clk 0:00:48.9]} 38... Qe7 {[%clk 0:00:13.3]} 39.
Nh7+ {[%clk 0:00:46.4]} 39... Kg8 {[%clk 0:00:13.1]} 40. Nf6+ {[%clk 0:00:47.2]}
40... Kf8 {[%clk 0:00:13.5]} 41. Rh8+ {[%clk 0:00:47.6]} 1-0

[Event "Early-Titled-Tuesday-Blitz-April-23-2024"]
[Site "Chess.com"]
[Date "2024.04.23"]
[Round "7"]
[White "KorolDimitriy75"]
[Black "ragnaroek66"]
[Result "0-1"]
[WhiteElo "2330"]
[BlackElo "2530"]
[TimeControl "180+1"]
[EndTime "9:19:20 PDT"]
[Termination "ragnaroek66 won on time"]

1. d4 {[%clk 0:03:00.9]} 1... d5 {[%clk 0:02:59.8]} 2. c4 {[%clk 0:03:01]} 2...
e6 {[%clk 0:03:00.1]} 3. Nc3 {[%clk 0:03:01.6]} 3... Bb4 {[%clk 0:03:00.3]} 4.
cxd5 {[%clk 0:02:58.9]} 4... exd5 {[%clk 0:03:00.4]} 5. Qc2 {[%clk 0:02:58.5]}
5... c6 {[%clk 0:02:53.3]} 6. Bf4 {[%clk 0:02:52.5]} 6... Nf6 {[%clk 0:02:51.6]}
7. e3 {[%clk 0:02:52.7]} 7... O-O {[%clk 0:02:51.4]} 8. Bd3 {[%clk 0:02:53.3]}
8... Bg4 {[%clk 0:02:46.5]} 9. Ne2 {[%clk 0:02:50]} 9... Re8 {[%clk 0:02:45.2]}
10. O-O {[%clk 0:02:49.5]} 10... Bf8 {[%clk 0:02:43.1]} 11. Rae1 {[%clk
0:02:12.5]} 11... Bh5 {[%clk 0:02:41.5]} 12. f3 {[%clk 0:02:06.2]} 12... c5
{[%clk 0:02:41.5]} 13. Qd2 {[%clk 0:01:52.5]} 13... Nc6 {[%clk 0:02:40]} 14. Bb1
{[%clk 0:01:51.4]} 14... Bg6 {[%clk 0:02:29]} 15. Bxg6 {[%clk 0:01:22.8]} 15...
hxg6 {[%clk 0:02:29.9]} 16. Bg3 {[%clk 0:01:22.4]} 16... g5 {[%clk 0:02:11.4]}
17. Bf2 {[%clk 0:01:15.4]} 17... Bd6 {[%clk 0:02:07.4]} 18. dxc5 {[%clk
0:00:56.6]} 18... Bxc5 {[%clk 0:02:07.2]} 19. Rd1 {[%clk 0:00:57.3]} 19... Qe7
{[%clk 0:01:57.2]} 20. Nxd5 {[%clk 0:00:47.5]} 20... Nxd5 {[%clk 0:01:58.1]} 21.
Qxd5 {[%clk 0:00:47.9]} 21... Bxe3 {[%clk 0:01:55.4]} 22. Nc3 {[%clk 0:00:32.2]}
22... Rad8 {[%clk 0:01:50.3]} 23. Qb3 {[%clk 0:00:19.6]} 23... Nd4 {[%clk
0:01:41.9]} 24. Qc4 {[%clk 0:00:14.4]} 24... b5 {[%clk 0:01:25.1]} 25. Qd3
{[%clk 0:00:06.6]} 25... Nxf3+ {[%clk 0:01:23.7]} 26. gxf3 {[%clk 0:00:06.5]}
26... Rxd3 {[%clk 0:01:23.4]} 27. Rxd3 {[%clk 0:00:05.5]} 27... Bxf2+ {[%clk
0:01:23.5]} 28. Rxf2 {[%clk 0:00:06.4]} 28... Qe1+ {[%clk 0:01:14.4]} 29. Kg2
{[%clk 0:00:06.3]} 29... b4 {[%clk 0:01:13.6]} 30. Ne4 {[%clk 0:00:05.5]} 30...
g4 {[%clk 0:01:12]} 31. Ng3 {[%clk 0:00:05]} 31... gxf3+ {[%clk 0:01:02]} 32.
Rdxf3 {[%clk 0:00:05.9]} 32... f6 {[%clk 0:01:02.4]} 33. Nf5 {[%clk 0:00:05.7]}
33... Re3 {[%clk 0:00:59.6]} 34. Nxe3 {[%clk 0:00:04.7]} 34... a5 {[%clk
0:00:56.7]} 35. Nf5 {[%clk 0:00:03.8]} 35... Qe4 {[%clk 0:00:54.1]} 36. Ng3
{[%clk 0:00:01.1]} 36... Qg4 {[%clk 0:00:54.2]} 0-1

[Event "Early-Titled-Tuesday-Blitz-April-23-2024"]
[Site "Chess.com"]
[Date "2024.04.23"]
[Round "7"]
[White "HamedWafa4"]
[Black "Attacker_2006"]
[Result "1-0"]
[WhiteElo "2734"]
[BlackElo "2562"]
[TimeControl "180+1"]
[EndTime "9:19:23 PDT"]
[Termination "HamedWafa4 won by checkmate"]

1. e4 {[%clk 0:03:00.9]} 1... c5 {[%clk 0:02:59.5]} 2. Nc3 {[%clk 0:03:00]} 2...
Nc6 {[%clk 0:02:55.7]} 3. Nf3 {[%clk 0:02:59.5]} 3... Nf6 {[%clk 0:02:52.8]} 4.
Bb5 {[%clk 0:02:58.8]} 4... Qc7 {[%clk 0:02:50.7]} 5. O-O {[%clk 0:02:58.1]}
5... e5 {[%clk 0:02:47.3]} 6. d3 {[%clk 0:02:53.3]} 6... d6 {[%clk 0:02:46.8]}
7. Bg5 {[%clk 0:02:51.2]} 7... Be6 {[%clk 0:02:45.1]} 8. Bxf6 {[%clk 0:02:50]}
8... gxf6 {[%clk 0:02:44.6]} 9. Nh4 {[%clk 0:02:49.3]} 9... O-O-O {[%clk
0:02:40.7]} 10. Bc4 {[%clk 0:02:44.1]} 10... Ne7 {[%clk 0:02:28.8]} 11. Qf3
{[%clk 0:02:43]} 11... Bg7 {[%clk 0:02:23.6]} 12. Nf5 {[%clk 0:02:37]} 12...
Rhg8 {[%clk 0:02:05.4]} 13. Nxg7 {[%clk 0:02:34.5]} 13... Rxg7 {[%clk
0:02:03.6]} 14. Qxf6 {[%clk 0:02:34.8]} 14... Rg6 {[%clk 0:02:01.3]} 15. Qh4
{[%clk 0:02:27]} 15... Rdg8 {[%clk 0:01:59.5]} 16. g3 {[%clk 0:02:26.7]} 16...
f5 {[%clk 0:01:47.3]} 17. Qxh7 {[%clk 0:02:17.5]} 17... Bxc4 {[%clk 0:01:40.1]}
18. dxc4 {[%clk 0:02:11.5]} 18... f4 {[%clk 0:01:38.4]} 19. Rad1 {[%clk
0:02:07.1]} 19... a6 {[%clk 0:01:27.3]} 20. Qf7 {[%clk 0:01:57.8]} 20... Qd7
{[%clk 0:01:07.2]} 21. Nd5 {[%clk 0:01:50.6]} 21... Nxd5 {[%clk 0:00:42.2]} 22.
Qxd7+ {[%clk 0:01:48.9]} 22... Kxd7 {[%clk 0:00:43.1]} 23. Rxd5 {[%clk
0:01:49.3]} 23... Rh8 {[%clk 0:00:38.4]} 24. Rfd1 {[%clk 0:01:47.4]} 24... Kc7
{[%clk 0:00:32.9]} 25. Kg2 {[%clk 0:01:36.5]} 25... Rgh6 {[%clk 0:00:18.8]} 26.
h4 {[%clk 0:01:33.9]} 26... Rg8 {[%clk 0:00:19.3]} 27. Kh3 {[%clk 0:01:33.7]}
27... Rhg6 {[%clk 0:00:19.7]} 28. R1d3 {[%clk 0:01:33.8]} 28... R8g7 {[%clk
0:00:18.3]} 29. a3 {[%clk 0:01:33.6]} 29... b6 {[%clk 0:00:18.2]} 30. b4 {[%clk
0:01:33.1]} 30... Kc6 {[%clk 0:00:17.6]} 31. c3 {[%clk 0:01:32.2]} 31... Kc7
{[%clk 0:00:17.8]} 32. a4 {[%clk 0:01:31.9]} 32... a5 {[%clk 0:00:17.1]} 33. b5
{[%clk 0:01:30.9]} 33... Rh7 {[%clk 0:00:17.1]} 34. Rf3 {[%clk 0:01:30.2]} 34...
Rhg7 {[%clk 0:00:14.7]} 35. Rd1 {[%clk 0:01:29.6]} 35... Rf7 {[%clk 0:00:13.1]}
36. Rg1 {[%clk 0:01:29.1]} 36... Rfg7 {[%clk 0:00:09]} 37. g4 {[%clk 0:01:24.6]}
37... Kd7 {[%clk 0:00:09.4]} 38. g5 {[%clk 0:01:24.1]} 38... Ke6 {[%clk
0:00:07.7]} 39. Rd3 {[%clk 0:01:20.5]} 39... Rg8 {[%clk 0:00:07.7]} 40. f3
{[%clk 0:01:20.1]} 40... Kf7 {[%clk 0:00:05.4]} 41. Rgd1 {[%clk 0:01:19.4]}
41... Ke7 {[%clk 0:00:05.8]} 42. Kg4 {[%clk 0:01:19]} 42... R6g7 {[%clk
0:00:06.3]} 43. Rxd6 {[%clk 0:01:18.8]} 43... Rh8 {[%clk 0:00:05.7]} 44. Rd7+
{[%clk 0:01:18.9]} 44... Ke6 {[%clk 0:00:03.2]} 45. R1d6# {[%clk 0:01:18.7]} 1-0

[Event "Early-Titled-Tuesday-Blitz-April-23-2024"]
[Site "Chess.com"]
[Date "2024.04.23"]
[Round "7"]
[White "Nemegejas"]
[Black "ravengelic"]
[Result "0-1"]
[WhiteElo "2805"]
[BlackElo "2677"]
[TimeControl "180+1"]
[EndTime "9:19:24 PDT"]
[Termination "ravengelic won by resignation"]

1. d4 {[%clk 0:03:00.9]} 1... Nf6 {[%clk 0:02:59.6]} 2. Nf3 {[%clk 0:03:00.7]}
2... g6 {[%clk 0:02:59.6]} 3. Nc3 {[%clk 0:02:58.1]} 3... d5 {[%clk 0:02:59.3]}
4. Bf4 {[%clk 0:02:54.9]} 4... c6 {[%clk 0:02:58.4]} 5. h4 {[%clk 0:02:54.5]}
5... Qb6 {[%clk 0:02:58.2]} 6. Rb1 {[%clk 0:02:51.9]} 6... Bg4 {[%clk
0:02:57.8]} 7. Ne5 {[%clk 0:02:51.4]} 7... Nbd7 {[%clk 0:02:58]} 8. Nxg4 {[%clk
0:02:43.6]} 8... Nxg4 {[%clk 0:02:58.9]} 9. h5 {[%clk 0:02:43.6]} 9... e5 {[%clk
0:02:54.8]} 10. hxg6 {[%clk 0:02:28]} 10... exf4 {[%clk 0:02:46.6]} 11. gxf7+
{[%clk 0:02:28.9]} 11... Kxf7 {[%clk 0:02:44]} 12. e4 {[%clk 0:02:29.3]} 12...
h5 {[%clk 0:02:23.6]} 13. Be2 {[%clk 0:02:24.9]} 13... Bg7 {[%clk 0:02:06.3]}
14. exd5 {[%clk 0:01:55]} 14... Qxd4 {[%clk 0:02:03]} 15. O-O {[%clk 0:01:42.8]}
15... Qxd1 {[%clk 0:01:58.2]} 16. Rfxd1 {[%clk 0:01:37.6]} 16... c5 {[%clk
0:01:58.5]} 17. Ne4 {[%clk 0:01:32.8]} 17... Bd4 {[%clk 0:01:48.8]} 18. c3
{[%clk 0:01:29.5]} 18... Be5 {[%clk 0:01:42.5]} 19. b4 {[%clk 0:01:28.1]} 19...
cxb4 {[%clk 0:01:37.4]} 20. Rxb4 {[%clk 0:01:26.2]} 20... b6 {[%clk 0:01:37.7]}
21. Ng5+ {[%clk 0:01:25]} 21... Kg6 {[%clk 0:01:26.7]} 22. Ne6 {[%clk
0:01:25.3]} 22... Rac8 {[%clk 0:01:11.1]} 23. Ra4 {[%clk 0:01:22.3]} 23... a5
{[%clk 0:01:09.9]} 24. Nxf4+ {[%clk 0:01:14.2]} 24... Bxf4 {[%clk 0:01:07.2]}
25. Rxf4 {[%clk 0:01:15.1]} 25... Rxc3 {[%clk 0:01:07.6]} 26. Bxg4 {[%clk
0:01:06.8]} 26... hxg4 {[%clk 0:01:07.5]} 27. Rxg4+ {[%clk 0:01:07.7]} 27... Kf6
{[%clk 0:01:07.9]} 28. Re4 {[%clk 0:01:04.6]} 28... Nc5 {[%clk 0:01:01.7]} 29.
Re2 {[%clk 0:01:02.8]} 29... Rd8 {[%clk 0:00:59.5]} 30. d6 {[%clk 0:01:01.8]}
30... Rd3 {[%clk 0:00:59.8]} 31. Red2 {[%clk 0:00:52.8]} 31... R8xd6 {[%clk
0:00:58.5]} 32. Rxd3 {[%clk 0:00:51.8]} 32... Rxd3 {[%clk 0:00:59.4]} 33. Rb1
{[%clk 0:00:52.6]} 33... Rd6 {[%clk 0:00:56.1]} 34. Kh2 {[%clk 0:00:47.7]} 34...
Ne4 {[%clk 0:00:52.5]} 35. f3 {[%clk 0:00:47.8]} 35... Nc3 {[%clk 0:00:53.1]}
36. Rb2 {[%clk 0:00:48.2]} 36... b5 {[%clk 0:00:52.7]} 37. a3 {[%clk 0:00:48.9]}
37... Rb6 {[%clk 0:00:49.1]} 38. g4 {[%clk 0:00:44.6]} 38... b4 {[%clk
0:00:49.4]} 39. axb4 {[%clk 0:00:43.9]} 39... axb4 {[%clk 0:00:50.3]} 40. Rb3
{[%clk 0:00:41.1]} 40... Ne2 {[%clk 0:00:44.9]} 41. f4 {[%clk 0:00:28.3]} 41...
Nxf4 {[%clk 0:00:40.6]} 0-1

[Event "Early-Titled-Tuesday-Blitz-April-23-2024"]
[Site "Chess.com"]
[Date "2024.04.23"]
[Round "7"]
[White "Firouzja2003"]
[Black "Keranke"]
[Result "1-0"]
[WhiteElo "3071"]
[BlackElo "2862"]
[TimeControl "180+1"]
[EndTime "9:19:25 PDT"]
[Termination "Firouzja2003 won on time"]

1. e4 {[%clk 0:02:58.6]} 1... d5 {[%clk 0:02:59.4]} 2. exd5 {[%clk 0:02:58.7]}
2... Qxd5 {[%clk 0:03:00.3]} 3. Nc3 {[%clk 0:02:58.8]} 3... Qd6 {[%clk
0:03:00.9]} 4. d4 {[%clk 0:02:59.3]} 4... Nf6 {[%clk 0:03:01.1]} 5. Nf3 {[%clk
0:02:59.9]} 5... a6 {[%clk 0:03:01.3]} 6. g3 {[%clk 0:02:56.6]} 6... Nc6 {[%clk
0:03:00.6]} 7. Bf4 {[%clk 0:02:52.7]} 7... Qb4 {[%clk 0:02:54.2]} 8. a3 {[%clk
0:02:52]} 8... Qb6 {[%clk 0:02:51.2]} 9. d5 {[%clk 0:02:47.7]} 9... Nb8 {[%clk
0:02:44.5]} 10. Bg2 {[%clk 0:02:34.6]} 10... Qxb2 {[%clk 0:02:29.9]} 11. Be5
{[%clk 0:02:35]} 11... Nbd7 {[%clk 0:02:22]} 12. Bd4 {[%clk 0:02:34.4]} 12... c5
{[%clk 0:01:48.9]} 13. dxc6 {[%clk 0:02:26.2]} 13... bxc6 {[%clk 0:01:48.8]} 14.
Ne5 {[%clk 0:02:15.7]} 14... Nxe5 {[%clk 0:01:42.7]} 15. Bxe5 {[%clk 0:02:16.6]}
15... Bd7 {[%clk 0:01:32]} 16. O-O {[%clk 0:02:07.3]} 16... Qb6 {[%clk 0:01:29]}
17. Rb1 {[%clk 0:02:03.9]} 17... Qa5 {[%clk 0:01:24.9]} 18. Re1 {[%clk
0:01:52.4]} 18... e6 {[%clk 0:01:21.6]} 19. Rb7 {[%clk 0:01:41.9]} 19... Nd5
{[%clk 0:01:08.6]} 20. Ne4 {[%clk 0:01:39.6]} 20... Bc8 {[%clk 0:00:26.2]} 21.
Rb3 {[%clk 0:01:23.8]} 21... f6 {[%clk 0:00:21.8]} 22. Bb2 {[%clk 0:01:15.5]}
22... Be7 {[%clk 0:00:19.7]} 23. c4 {[%clk 0:01:14.9]} 23... Nc7 {[%clk
0:00:19.7]} 24. Bc3 {[%clk 0:00:48.2]} 24... Qa4 {[%clk 0:00:14.3]} 25. Bb4
{[%clk 0:00:48.7]} 25... Rb8 {[%clk 0:00:11.5]} 26. Nc3 {[%clk 0:00:38.9]} 26...
Qxb3 {[%clk 0:00:09.8]} 27. Qxb3 {[%clk 0:00:39.8]} 27... c5 {[%clk 0:00:10]}
28. Nb5 {[%clk 0:00:33.4]} 28... axb5 {[%clk 0:00:09.1]} 29. Ba5 {[%clk
0:00:34]} 29... Bd8 {[%clk 0:00:05]} 30. cxb5 {[%clk 0:00:32.3]} 30... O-O
{[%clk 0:00:02.2]} 31. b6 {[%clk 0:00:31]} 1-0

[Event "Early-Titled-Tuesday-Blitz-April-23-2024"]
[Site "Chess.com"]
[Date "2024.04.23"]
[Round "7"]
[White "FischerKasparow"]
[Black "Chernov_Alexander_A"]
[Result "0-1"]
[WhiteElo "2110"]
[BlackElo "2264"]
[TimeControl "180+1"]
[EndTime "9:19:25 PDT"]
[Termination "Chernov_Alexander_A won by checkmate"]

1. e4 {[%clk 0:03:00.9]} 1... d6 {[%clk 0:02:59.7]} 2. d4 {[%clk 0:02:59.6]}
2... Nf6 {[%clk 0:02:59.8]} 3. Nc3 {[%clk 0:03:00]} 3... Nbd7 {[%clk 0:02:59.6]}
4. Nf3 {[%clk 0:02:58.6]} 4... e5 {[%clk 0:02:59.8]} 5. Bc4 {[%clk 0:02:58.4]}
5... Be7 {[%clk 0:02:59]} 6. O-O {[%clk 0:02:58.3]} 6... O-O {[%clk 0:02:58.9]}
7. a4 {[%clk 0:02:57.6]} 7... c6 {[%clk 0:02:58.6]} 8. h3 {[%clk 0:02:57.5]}
8... Qc7 {[%clk 0:02:58.4]} 9. Bb3 {[%clk 0:02:54.2]} 9... exd4 {[%clk
0:02:58.2]} 10. Nxd4 {[%clk 0:02:53.3]} 10... Ne5 {[%clk 0:02:58.3]} 11. f4
{[%clk 0:02:49.8]} 11... Ng6 {[%clk 0:02:57.7]} 12. Qf3 {[%clk 0:02:47.4]} 12...
Bd7 {[%clk 0:02:57.5]} 13. Be3 {[%clk 0:02:43.4]} 13... Rad8 {[%clk 0:02:56.6]}
14. Rae1 {[%clk 0:02:40.3]} 14... Bc8 {[%clk 0:02:51.4]} 15. g4 {[%clk
0:02:33.3]} 15... Nd7 {[%clk 0:02:47.2]} 16. g5 {[%clk 0:02:28]} 16... Nc5
{[%clk 0:02:34.3]} 17. Ba2 {[%clk 0:02:24]} 17... Kh8 {[%clk 0:02:24]} 18. Bf2
{[%clk 0:02:20.4]} 18... f5 {[%clk 0:02:10.1]} 19. exf5 {[%clk 0:02:13.2]} 19...
Bxf5 {[%clk 0:02:04.3]} 20. Nxf5 {[%clk 0:02:12.1]} 20... Rxf5 {[%clk
0:02:03.1]} 21. Bxc5 {[%clk 0:02:04.9]} 21... dxc5 {[%clk 0:01:52.5]} 22. Qg4
{[%clk 0:01:53.2]} 22... Rdf8 {[%clk 0:01:45.8]} 23. Re4 {[%clk 0:01:40.1]}
23... Bxg5 {[%clk 0:01:41.9]} 24. Rfe1 {[%clk 0:01:33.6]} 24... Bxf4 {[%clk
0:01:23.4]} 25. Re8 {[%clk 0:01:18.8]} 25... Rg5 {[%clk 0:01:21.1]} 26. Rxf8+
{[%clk 0:01:16.7]} 26... Nxf8 {[%clk 0:01:20]} 27. Re8 {[%clk 0:01:08.6]} 27...
Rxg4+ {[%clk 0:01:15.6]} 28. hxg4 {[%clk 0:01:08.5]} 28... Bd6 {[%clk
0:01:03.3]} 29. Ne4 {[%clk 0:01:07.1]} 29... Qd7 {[%clk 0:00:55]} 30. Nxd6
{[%clk 0:01:03]} 30... Qxd6 {[%clk 0:00:53]} 31. Kg2 {[%clk 0:01:01.8]} 31... g6
{[%clk 0:00:50.2]} 32. c3 {[%clk 0:00:51.5]} 32... Kg7 {[%clk 0:00:49.8]} 33.
Kf3 {[%clk 0:00:50.4]} 33... Nd7 {[%clk 0:00:49.1]} 34. Rg8+ {[%clk 0:00:43.7]}
34... Kh6 {[%clk 0:00:47.3]} 35. Re8 {[%clk 0:00:40.5]} 35... Qf6+ {[%clk
0:00:44.5]} 36. Kg3 {[%clk 0:00:38.9]} 36... Ne5 {[%clk 0:00:42.9]} 37. Re6
{[%clk 0:00:34.4]} 37... Qf3+ {[%clk 0:00:39.3]} 38. Kh2 {[%clk 0:00:30.6]}
38... Nxg4+ {[%clk 0:00:39.1]} 39. Kg1 {[%clk 0:00:30.4]} 39... Qf2+ {[%clk
0:00:35.6]} 40. Kh1 {[%clk 0:00:30.3]} 40... Qf1# {[%clk 0:00:34.6]} 0-1